{"text_format":"1","workbook":"xlsx","n_sheets":5,"sheets":["bk_プロジェクト申請シート","bk_プロジェクト申請シート2","form1","form2","select_items"],"not_rendered":{"charts":0,"images":0,"macros":1,"external_links":0,"defined_names":1,"comments":0,"pivot_tables":0},"unopened":[],"bounds":{"document_bytes":16777216,"sheet_cells":100000,"rows_first":2000,"rows_last":500,"rows_between":2000,"halvings":0,"cell_chars":16384,"cell_head_chars":4096},"cells_cut":0,"cells_raw":0,"read":"whole","date_system":"1900"}

{"sheet":"bk_プロジェクト申請シート","index":0,"n_rows":37,"n_cols":12,"rows_kept":37,"cut":false,"hidden":true,"merged":[[21,1,21,6],[22,1,22,6],[10,5,10,8],[10,9,10,12],[11,5,11,8],[11,9,11,12],[12,1,12,12],[13,1,18,12],[21,7,21,12],[7,1,8,4],[10,1,10,4],[11,1,11,4],[5,1,5,4],[6,1,6,4],[9,1,9,12],[5,5,5,8],[5,9,5,12],[7,9,7,10],[7,11,7,12],[8,9,8,10],[8,11,8,12],[6,5,6,8],[6,9,6,12],[7,5,7,6],[7,7,7,8],[2,1,2,12],[3,1,3,12],[4,1,4,4],[4,5,4,8],[4,9,4,12],[36,1,36,4],[36,5,36,8],[36,9,36,12],[32,1,32,4],[32,5,32,8],[32,9,32,12],[33,1,33,4],[33,5,33,8],[33,9,33,12],[34,1,34,4],[34,5,34,8],[34,9,34,12],[35,1,35,4],[35,5,35,8],[35,9,35,12],[31,5,31,8],[31,9,31,12],[29,1,29,4],[29,5,29,8],[29,9,29,12],[30,1,30,4],[30,5,30,8],[30,9,30,12],[31,1,31,4],[26,5,26,8],[26,9,26,12],[22,7,22,12],[23,1,23,12],[24,1,24,12],[25,1,25,4],[25,5,25,8],[25,9,25,12],[26,1,26,4]]}
[]
[null,"プロジェクトサマリー"]
[null,"プロジェクト名"]
[]
[null,"プロジェクト対象国",null,null,null,"プロジェクト対象地域",null,null,null,"プロジェクト対象規模（ha）"]
[null,"国を選択",null,null,null,null,null,null,null,"ha"]
[null,"プロジェクトタイプ",null,null,null,"プロジェクト期間",null,null,null,"受益者数"]
[null,"プロジェクトタイプを選択",null,null,null,"開始",null,"終了",null,"総数",null,"うち女性"]
[null,null,null,null,null,"mm","yy","mm","yy","人",null,"人"]
[null,"予算見積もり"]
[null,"要求金額",null,null,null,"共同融資額",null,null,null,"トータル"]
[null,"USD",null,null,null,"USD",null,null,null,"USD"]
[null,"プロジェクト概要（200-250字）"]
[]
[]
[]
[]
[]
[]
[]
[null,"連絡担当者"]
[null,"担当者名",null,null,null,null,null,"肩書き"]
[]
[null,"住所"]
[]
[null,"メールアドレス",null,null,null,"電話番号",null,null,null,"FAX"]
[]
[]
[null,"パートナー組織"]
[null,"組織名",null,null,null,"組織タイプ",null,null,null,"IPSIメンバーの場合はチェック"]
[null,null,null,null,null,null,null,null,null,false]
[null,null,null,null,null,null,null,null,null,false]
[null,null,null,null,null,null,null,null,null,false]
[null,null,null,null,null,null,null,null,null,false]
[null,null,null,null,null,null,null,null,null,false]
[null,null,null,null,null,null,null,null,null,false]
[null,null,null,null,null,null,null,null,null,false]

{"sheet":"bk_プロジェクト申請シート2","index":1,"n_rows":171,"n_cols":13,"rows_kept":171,"cut":false,"hidden":true,"merged":[[125,1,125,12],[118,1,118,6],[118,7,118,12],[119,1,119,6],[119,7,119,12],[120,1,120,12],[121,1,121,6],[121,7,121,12],[122,1,122,6],[122,7,122,12],[107,1,107,4],[108,1,108,4],[109,1,109,4],[110,1,110,4],[111,1,111,4],[112,1,112,4],[113,1,113,4],[114,1,114,4],[115,1,115,4],[78,3,78,4],[79,3,79,4],[97,1,97,12],[98,1,100,12],[103,1,103,12],[104,5,104,8],[104,9,104,12],[104,1,105,4],[106,1,106,4],[79,9,79,10],[80,3,80,4],[80,9,80,10],[81,3,81,4],[86,3,86,4],[93,1,93,12],[94,1,96,12],[88,3,88,4],[87,9,87,10],[88,9,88,10],[65,9,65,12],[66,1,67,4],[66,5,67,8],[66,9,67,12],[68,7,68,12],[74,3,74,4],[75,3,75,4],[68,1,68,6],[69,1,70,6],[69,7,70,12],[71,1,71,12],[73,1,92,1],[83,3,83,4],[83,9,83,10],[84,3,84,4],[85,3,85,4],[84,9,84,10],[89,3,89,4],[89,9,89,10],[85,9,85,10],[76,3,76,4],[77,3,77,4],[82,9,82,10],[78,9,78,10],[48,5,49,8],[48,9,49,12],[50,1,51,4],[50,5,51,8],[50,9,51,12],[86,9,86,10],[87,3,87,4],[72,9,72,10],[73,7,92,7],[73,9,73,10],[74,9,74,10],[75,9,75,10],[76,9,76,10],[77,9,77,10],[90,3,90,4],[90,8,92,12],[91,3,91,4],[92,3,92,4],[72,3,72,4],[73,3,73,4],[82,3,82,4],[81,9,81,10],[65,1,65,4],[65,5,65,8],[40,11,41,12],[42,1,43,2],[42,11,43,12],[44,1,44,12],[42,3,43,5],[42,6,43,8],[42,9,43,9],[38,1,39,2],[38,3,39,5],[64,1,64,12],[45,1,46,12],[47,1,47,4],[47,5,47,8],[47,9,47,12],[48,1,49,4],[38,11,39,12],[52,5,53,8],[52,9,53,12],[52,1,53,4],[38,6,39,8],[38,9,39,9],[38,10,39,10],[42,10,43,10],[54,1,55,4],[54,5,55,8],[54,9,55,12],[56,1,56,12],[57,1,61,12],[40,1,41,2],[40,3,41,5],[40,6,41,8],[40,9,41,9],[40,10,41,10],[36,11,37,12],[32,1,33,2],[32,3,33,5],[32,6,33,8],[32,9,33,9],[32,10,33,10],[32,11,33,12],[34,1,35,2],[34,11,35,12],[34,3,35,5],[34,6,35,8],[36,1,37,2],[36,3,37,5],[36,6,37,8],[34,9,35,9],[34,10,35,10],[36,9,37,9],[36,10,37,10],[30,10,31,10],[30,11,31,12],[27,1,28,12],[29,1,29,2],[29,3,29,5],[29,6,29,8],[29,11,29,12],[30,1,31,2],[30,3,31,5],[169,1,169,12],[170,1,170,4],[170,5,170,8],[170,9,170,12],[11,5,11,6],[12,5,12,6],[12,8,12,9],[12,10,12,12],[2,1,2,12],[3,1,9,12],[10,1,10,12],[11,2,11,3],[11,8,11,9],[11,11,11,12],[12,2,12,3],[13,2,13,12],[14,1,15,12],[16,1,16,12],[17,1,20,12],[21,1,21,12],[22,1,25,12],[26,1,26,12],[30,6,31,8],[30,9,31,9],[167,1,167,2],[168,1,168,2],[157,1,157,12],[158,1,160,12],[161,1,161,12],[162,1,163,12],[164,3,164,8],[164,9,164,10],[164,11,164,12],[167,9,167,10],[167,11,167,12],[165,3,165,8],[165,9,165,10],[165,11,165,12],[166,3,166,8],[166,9,166,10],[166,11,166,12],[167,3,167,8],[168,3,168,8],[168,9,168,10],[168,11,168,12],[138,1,138,4],[138,5,138,6],[138,7,138,9],[139,1,139,4],[139,5,139,6],[139,7,139,9],[140,1,140,4],[140,5,140,6],[140,7,140,9],[141,1,141,4],[141,5,141,6],[141,7,141,9],[142,1,142,4],[142,5,142,6],[142,7,142,9],[143,1,143,9],[175,5,176,8],[175,9,176,12],[171,1,172,4],[171,5,172,8],[171,9,172,12],[173,1,174,4],[173,5,174,8],[173,9,174,12],[175,1,176,4],[145,1,145,12],[146,1,150,12],[154,1,154,12],[155,1,155,12],[156,1,156,12],[164,1,164,2],[165,1,165,2],[166,1,166,2],[134,5,134,6],[134,7,134,9],[132,1,132,4],[132,5,132,6],[132,7,132,9],[133,1,133,4],[133,5,133,6],[133,7,133,9],[134,1,134,4],[131,5,131,6],[131,7,131,9],[129,1,129,4],[129,5,129,6],[129,7,129,9],[130,1,130,4],[130,5,130,6],[130,7,130,9],[131,1,131,4],[128,5,128,6],[128,7,128,9],[126,1,126,4],[126,5,126,6],[126,7,126,9],[127,1,127,4],[127,5,127,6],[127,7,127,9],[128,1,128,4],[137,5,137,6],[137,7,137,9],[135,1,135,4],[135,5,135,6],[135,7,135,9],[136,1,136,4],[136,5,136,6],[136,7,136,9],[137,1,137,4]]}
[]
[null,"プロジェクト戦略"]
[null,"バックグラウンド（250ワード以内）"]
[null,"プロジェクトが提案されているSEPLSの生態学的、社会文化的、経済的特徴を説明し、問題認識を記入してください。\n＜以下のポイントで自由記載＞\n● 景観/海景を説明する（生態系と絶滅危惧種を適切に指定）\n● 風景/海景は地元の人々にとって重要です（NCPを指定してください）\n● 風景や海の景観に対する脅威と、それが人々に提供する利益は何ですか?\n● 景観・海景の持続可能性、レジリエンス、エクイティに関するその他の問題\n● 障壁は?"]
[]
[]
[]
[]
[]
[]
[null,"ランドスケープタイプ"]
[null,false,"森",null,false,"草地",null,false,"陸上水 ",null,false,"臨海"]
[null,false,"乾燥        ",null,false,"山",null,false,"都市/周辺都市"]
[null,false,"その他（以下に記述してください）"]
[]
[]
[null,"全体的な目的と目標（100ワード以内）"]
[null,"上記の問題に対処するためのプロジェクトの目的と、プロジェクトの目的を達成するために必要な一連の目標を記入してください。"]
[]
[]
[]
[null,"プロジェクトの成果"]
[null,"成果は、プロジェクト内またはプロジェクトの後に達成できるプロジェクト活動の結果としての変更です。\n受益者またはプロジェクト サイトで発生する変更を指定してください。"]
[]
[]
[]
[null,"計画された活動とアウトプット"]
[null,"期待される成果につながる活動や主要な成果のリストをご提示ください。アウトプットは、完了した活動の測定可能な結果であり、プロジェクト期間内に表示されます（例えば、XX人がワークショップに参加し、XX haが植えられます）。"]
[]
[null,"活動名",null,"説明",null,null,"アウトプット",null,null,"実施前の数値","実施後の数値","単位"]
[]
[]
[]
[]
[]
[]
[]
[]
[]
[]
[]
[]
[]
[]
[null,"関与するステークホルダー"]
[null,"地域の人々・地域社会、国・自治体、民間セクター、CPOなど、どのステークホルダーが関与するか、\nまた、その 意義ある関与をどのように触媒するか、明確にしてください。(100語以下)"]
[]
[null,"団体種別",null,null,null,"団体名",null,null,null,"役割"]
[]
[]
[]
[]
[]
[]
[]
[]
[null,"リスクと仮定（100ワード以内）"]
[null,"プロジェクト戦略の設計における前提を明確にするか、提案された活動に関連する潜在的または予想されるリスクを特定し、そのリスクにどう対処するかを説明してください。"]
[]
[]
[]
[]
[]
[null,"プロジェクトの特徴"]
[null,"IPSI戦略と、どのような方法で当てはまるか"]
[null,"1.知識生成",null,null,null,"2.制度化",null,null,null,"3.地域ベースの保全"]
[]
[]
[null,"4.復旧",null,null,null,null,null,"5.持続可能な消費と生産"]
[]
[]
[null,"SDGsやABTsにて、どの目標を達成する可能性があるか"]
[null,"種別","ターゲット","内容",null,"直接","間接","種別","ターゲット","内容",null,"直接","間接"]
[null,"ABTs","Target 1","By 2020, at the latest, people are aware of the values of biodiversity and the steps they can take to conserve and use it sustainably.",null,false,false,"SDGs","Goal 1","End poverty in all its forms everywhere",null,false,false]
[null,null,"Target 2","By 2020, at the latest, biodiversity values have been integrated into national and local development and poverty reduction strategies and planning processes and are being incorporated into national accounting, as appropriate, and reporting systems.",null,false,false,null,"Goal 2","End hunger, achieve food security and improved nutrition and promote sustainable agriculture",null,false,false]
[null,null,"Target 3","By 2020, at the latest, incentives, including subsidies, harmful to biodiversity are eliminated, phased out or reformed in order to minimize or avoid negative impacts, and positive incentives for the conservation and sustainable use of biodiversity are developed and applied, consistent and in harmony with the Convention and other relevant international obligations, taking into account national socio economic conditions.",null,false,false,null,"Goal 3","Ensure healthy lives and promote well-being for all at all ages",null,false,false]
[null,null,"Target 4","By 2020, at the latest, Governments, business and stakeholders at all levels have taken steps to achieve or have implemented plans for sustainable production and consumption and have kept the impacts of use of natural resources well within safe ecological limits.",null,false,false,null,"Goal 4","Ensure inclusive and equitable quality education and promote lifelong learning opportunities for all",null,false,false]
[null,null,"Target 5","By 2020, the rate of loss of all natural habitats, including forests, is at least halved and where feasible brought close to zero, and degradation and fragmentation is significantly reduced.",null,false,false,null,"Goal 5","Achieve gender equality and empower all women and girls",null,false,false]
[null,null,"Target 6","By 2020 all fish and invertebrate stocks and aquatic plants are managed and harvested sustainably, legally and applying ecosystem based approaches, so that overfishing is avoided, recovery plans and measures are in place for all depleted species, fisheries have no significant adverse impacts on threatened species and vulnerable ecosystems and the impacts of fisheries on stocks, species and ecosystems are within safe ecological limits.",null,false,false,null,"Goal 6","Ensure availability and sustainable management of water and sanitation for all",null,false,false]
[null,null,"Target 7","By 2020 areas under agriculture, aquaculture and forestry are managed sustainably, ensuring conservation of biodiversity.",null,false,false,null,"Goal 7","Ensure access to affordable, reliable, sustainable and modern energy for all",null,false,false]
[null,null,"Target 8","By 2020, pollution, including from excess nutrients, has been brought to levels that are not detrimental to ecosystem function and biodiversity.",null,false,false,null,"Goal 8","Promote sustained, inclusive and sustainable economic growth, full and productive employment and decent work for all",null,false,false]
[null,null,"Target 9","By 2020, invasive alien species and pathways are identified and prioritized, priority species are controlled or eradicated, and measures are in place to manage pathways to prevent their introduction and establishment.",null,false,false,null,"Goal 9","Build resilient infrastructure, promote inclusive and sustainable industrialization and foster innovation",null,false,false]
[null,null,"Target 10","By 2020, invasive alien species and pathways are identified and prioritized, priority species are controlled or eradicated, and measures are in place to manage pathways to prevent their introduction and establishment.",null,false,false,null,"Goal 10","Reduce inequality within and among countries",null,false,false]
[null,null,"Target 11","By 2020, at least 17 per cent of terrestrial and inland water, and 10 per cent of coastal and marine areas, especially areas of particular importance for biodiversity and ecosystem services, are conserved through effectively and equitably managed, ecologically representative and well connected systems of protected areas and other effective area-based conservation measures, and integrated into the wider landscapes and seascapes.",null,false,false,null,"Goal 11","Make cities and human settlements inclusive, safe, resilient and sustainable",null,false,false]
[null,null,"Target 12","By 2020 the extinction of known threatened species has been prevented and their conservation status, particularly of those most in decline, has been improved and sustained.",null,false,false,null,"Goal 12","Ensure sustainable consumption and production patterns",null,false,false]
[null,null,"Target 13","By 2020, the genetic diversity of cultivated plants and farmed and domesticated animals and of wild relatives, including other socio-economically as well as culturally valuable species, is maintained, and strategies have been developed and implemented for minimizing genetic erosion and safeguarding their genetic diversity.",null,false,false,null,"Goal 13","Take urgent action to combat climate change and its impacts",null,false,false]
[null,null,"Target 14","By 2020, ecosystems that provide essential services, including services related to water, and contribute to health, livelihoods and well-being, are restored and safeguarded, taking into account the needs of women, indigenous and local communities, and the poor and vulnerable.",null,false,false,null,"Goal 14","Conserve and sustainably use the oceans, seas and marine resources for sustainable development",null,false,false]
[null,null,"Target 15","By 2020, ecosystem resilience and the contribution of biodiversity to carbon stocks has been enhanced, through conservation and restoration, including restoration of at least 15 per cent of degraded ecosystems, thereby contributing to climate change mitigation and adaptation and to combating desertification.",null,false,false,null,"Goal 15","Protect, restore and promote sustainable use of terrestrial ecosystems, sustainably manage forests, combat desertification, and halt and reverse land degradation and halt biodiversity loss",null,false,false]
[null,null,"Target 16","By 2015, the Nagoya Protocol on Access to Genetic Resources and the Fair and Equitable Sharing of Benefits Arising from their Utilization is in force and operational, consistent with national legislation.",null,false,false,null,"Goal 16","Promote peaceful and inclusive societies for sustainable development, provide access to justice for all and build effective, accountable and inclusive institutions at all levels",null,false,false]
[null,null,"Target 17","By 2015 each Party has developed, adopted as a policy instrument, and has commenced implementing an effective, participatory and updated national biodiversity strategy and action plan.",null,false,false,null,"Goal 17","Strengthen the means of implementation and revitalize the Global Partnership for Sustainable Development",null,false,false]
[null,null,"Target 18","By 2020, the traditional knowledge, innovations and practices of indigenous and local communities relevant for the conservation and sustainable use of biodiversity, and their customary use of biological resources, are respected, subject to national legislation and relevant international obligations, and fully integrated and reflected in the implementation of the Convention with the full and effective participation of indigenous and local communities, at all relevant levels.",null,false,false]
[null,null,"Target 19","By 2020, knowledge, the science base and technologies relating to biodiversity, its values, functioning, status and trends, and the consequences of its loss, are improved, widely shared and transferred, and applied.",null,false,false]
[null,null,"Target 20","By 2020, at the latest, the mobilization of financial resources for effectively implementing the Strategic Plan for Biodiversity 2011-2020 from all sources, and in accordance with the consolidated and agreed process in the Strategy for Resource Mobilization, should increase substantially from the current levels. This target will be subject to changes contingent to resource needs assessments to be developed and reported by Parties.",null,false,false]
[null,"どのようなイノベーションを生み出し、対象地域に影響を与えるのか（100ワード以内）"]
[]
[]
[]
[null,"どのように長期継続をするのか（100ワード以内）"]
[]
[]
[]
[]
[null,"プロジェクト実施の時間枠"]
[null,"プロジェクトの実施の期間を説明"]
[null,"主な活動",null,null,null,"1年目",null,null,null,"2年目"]
[null,null,null,null,null,"第1クォーター","第2クォーター","第3クォーター","第4クォーター","第1クォーター","第2クォーター","第3クォーター",true]
[null,null,null,null,null,true,true,true,false,false,false,false,false]
[]
[null,null,null,null,null,false,false,true,true,false,false,false,false]
[]
[null,null,null,null,null,false,false,false,false,false,false,false,false]
[]
[null,null,null,null,null,false,false,false,false,false,false,false,false]
[]
[null,null,null,null,null,false,false,false,false,false,false,false,false]
[]
[]
[null,"予算見積もり"]
[null,"予算見積もり合計",null,null,null,null,null,"SDMへの要求額（約10,000USDまで）"]
[null,"USD",null,null,null,null,null,"USD"]
[null,"共同出資者"]
[null,"ソース/組織の名前",null,null,null,null,null,"額"]
[null,null,null,null,null,null,null,"USD"]
[]
[null,"予算の内訳"]
[null,"予算と財務源 （USD）　"]
[null,"主な活動",null,null,null,"費目",null,"アイテム",null,null,"共同融資","SDM","小計"]
[null,null,null,null,null,null,null,null,null,null,100,0,{"$f":"SUM(J128:L128)","v":100}]
[null,null,null,null,null,null,null,null,null,null,50,10,60]
[null,null,null,null,null,null,null,null,null,null,0,0,0]
[null,null,null,null,null,null,null,null,null,null,0,0,0]
[null,null,null,null,null,null,null,null,null,null,0,0,0]
[null,null,null,null,null,null,null,null,null,null,0,0,0]
[null,null,null,null,null,null,null,null,null,null,0,0,0]
[null,null,null,null,null,null,null,null,null,null,0,0,0]
[null,null,null,null,null,null,null,null,null,null,0,0,0]
[null,null,null,null,null,null,null,null,null,null,0,0,0]
[null,null,null,null,null,null,null,null,null,null,0,0,0]
[null,null,null,null,null,null,null,null,null,null,0,0,0]
[null,null,null,null,null,null,null,null,null,null,0,0,0]
[null,null,null,null,null,null,null,null,null,null,0,0,0]
[null,null,null,null,null,null,null,null,null,null,0,0,0]
[null,null,null,null,null,null,null,null,null,null,0,0,0]
[null,"トータル",null,null,null,null,null,null,null,null,{"$f":"SUM(K128:L143)","v":160},{"$f":"SUM(L128:L143)","v":10},160]
[]
[null,"重要な注意：以下に記載されている費用は、一般的に助成金の対象外です。"]
[null,"a.  常勤/常勤スタッフ、プロジェクトディレクター/マネージャー。取締役・専任スタッフの人件費、光熱費、水道料金等のオフィス賃料\nb.  組織の日常業務に必要な経費\nc.  建設費\nd.  200米ドルを超える自動車やコンピュータなどの設備費。\ne.  下請けは基本的に推奨されませんが、やむを得ない場合は事務局との協議で承認することができ、最大200米ドル\n※不明な場合は、プロジェクト経費に関する事務局に連絡してください"]
[]
[]
[]
[]
[]
[]
[null,"プロジェクト実施組織"]
[null,"組織に関する情報"]
[null,"組織のURL"]
[]
[null,"業務（50ワード以内）"]
[]
[]
[]
[null,"過去の活動履歴"]
[null,"プロジェクトのタイトル、期間、資金調達ソース、出力、およびプロジェクトの関連 Web サイトを一覧表示し、提案されたプロジェクトに対するエクスペリエンスの適用方法を説明してください。"]
[]
[null,"期間",null,"プロジェクトタイトル",null,null,null,null,null,"寄贈者",null,"資金金額"]
[]
[]
[]
[]
[null,"プロジェクトに割り当てることのできる人員一覧"]
[null,"名前",null,null,null,"役割",null,null,null,"職位/組織"]

{"sheet":"form1","index":2,"n_rows":58,"n_cols":13,"rows_kept":58,"cut":false,"hidden":false,"merged":[[57,1,57,12],[1,1,1,12],[4,1,4,12],[5,1,5,12],[6,1,6,12],[7,1,7,12],[8,5,8,8],[8,9,8,12],[8,1,8,4],[9,1,9,4],[9,5,9,8],[9,9,9,12],[10,1,10,4],[10,5,10,8],[11,11,11,12],[12,9,12,10],[12,11,12,12],[13,1,13,12],[25,5,25,8],[25,9,25,12],[14,5,14,8],[14,9,14,12],[15,5,15,8],[15,9,15,12],[55,5,55,8],[55,9,55,12],[53,1,53,4],[53,5,53,8],[53,9,53,12],[54,1,54,4],[54,5,54,8],[54,9,54,12],[55,1,55,4],[52,9,52,12],[50,1,50,4],[50,5,50,8],[50,9,50,12],[51,1,51,4],[51,5,51,8],[51,9,51,12],[52,1,52,4],[10,9,10,12],[11,1,12,4],[48,1,48,12],[49,1,49,4],[49,5,49,8],[49,9,49,12],[52,5,52,8],[11,7,11,8],[11,9,11,10],[16,1,16,12],[17,1,22,12],[25,1,25,4],[14,1,14,4],[15,1,15,4],[11,5,11,6],[40,1,41,12],[42,1,42,12],[43,1,43,2],[43,3,43,6],[43,7,43,10],[47,1,47,2],[47,3,47,6],[47,7,47,10],[44,1,44,2],[45,1,45,2],[45,3,45,6],[45,7,45,10],[46,1,46,2],[46,3,46,6],[46,7,46,10],[44,3,44,6],[44,7,44,10],[38,1,38,12],[39,1,39,12],[32,5,32,8],[32,9,32,12],[29,1,29,4],[29,5,29,8],[29,9,29,12],[31,1,31,4],[31,5,31,8],[31,9,31,12],[32,1,32,4],[33,1,33,4],[33,5,33,8],[33,9,33,12],[36,1,36,12],[37,1,37,12],[30,1,30,4],[30,5,30,8],[30,9,30,12],[28,5,28,8],[28,9,28,12],[26,1,26,4],[26,5,26,8],[26,9,26,12],[27,1,27,4],[27,5,27,8],[27,9,27,12],[28,1,28,4]]}
[]
[null,"Sheet 1/2：Organisation information and Project outline"]
[]
[null,"Project summary"]
[null,"Organisation name"]
[]
[null,"Project title"]
[]
[null,"Country of project site (select)",null,null,null,"Area of project site (provice, village name, etc.)",null,null,null,"Area of project site (ha)"]
[null,"Select ▼",null,null,null,null,null,null,null,0]
[null,"Project type (select)",null,null,null,"Project period",null,null,null,"Number of beneficiaries"]
[null,"Select ▼",null,null,null,"Start (month, year)",null,"End (month, year)",null,"Total",null,"Number of women"]
[null,null,null,null,null,1,2022,1,2022,0,null,0]
[null,"Estimate of the budget amount (USD) *Auto-filling from form 2"]
[null,"Requested amount from SDM",null,null,null,"Co-financing",null,null,null,"Total"]
[null,{"$f":"form2!$H$107","v":0},null,null,null,{"$f":"form2!$H$113","v":0},null,null,null,{"$f":"form2!$B$107","v":0}]
[null,"Project outline (200 - 250 words)"]
[]
[]
[]
[]
[]
[]
[]
[null,"Collaborating organisations   "]
[null,"Organisation name",null,null,null,"Organisation type (select)",null,null,null,"Please check if it is an IPSI member."]
[null,null,null,null,null,"Select ▼",null,null,null,0]
[null,null,null,null,null,"Select ▼",null,null,null,0]
[null,null,null,null,null,"Select ▼",null,null,null,0]
[null,null,null,null,null,"Select ▼",null,null,null,0]
[null,null,null,null,null,"Select ▼",null,null,null,0]
[null,null,null,null,null,"Select ▼",null,null,null,0]
[null,null,null,null,null,"Select ▼",null,null,null,0]
[null,null,null,null,null,"Select ▼",null,null,null,0]
[]
[null,"Information of project implementation organisation"]
[null,"Information about the organisation"]
[null,"Organisation's URL"]
[]
[null,"Scope of work (within 50 words)"]
[]
[]
[null,"Past relevant projects"]
[null,"Period",null,"Project title",null,null,null,"Website (URL) if available",null,null,null,"Donor","Fund"]
[null,null,null,null,null,null,null,null,null,null,null,null,0]
[null,null,null,null,null,null,null,null,null,null,null,null,0]
[null,null,null,null,null,null,null,null,null,null,null,null,0]
[null,null,null,null,null,null,null,null,null,null,null,null,0]
[null,"Staffing for the proposed project"]
[null,"Name",null,null,null,"Role",null,null,null,"Position and organisation"]
[]
[]
[]
[]
[]
[]
[]
[null,"Please fill in form 2 as well."]

{"sheet":"form2","index":3,"n_rows":141,"n_cols":13,"rows_kept":141,"cut":false,"hidden":false,"merged":[[105,1,105,6],[94,1,94,12],[83,3,83,4],[84,3,84,4],[85,3,85,4],[79,3,79,4],[80,3,80,4],[81,3,81,4],[82,3,82,4],[80,9,80,10],[81,9,81,10],[82,9,82,10],[105,7,105,12],[95,9,95,12],[95,5,95,8],[97,1,97,4],[98,1,98,4],[89,3,89,4],[90,3,90,4],[91,3,91,4],[86,8,91,12],[78,9,78,10],[79,9,79,10],[45,1,46,4],[45,5,46,8],[45,9,46,12],[47,1,47,12],[48,1,50,12],[68,9,68,10],[68,3,68,4],[74,3,74,4],[75,3,75,4],[76,3,76,4],[77,3,77,4],[78,3,78,4],[75,9,75,10],[76,9,76,10],[56,1,60,12],[63,1,63,12],[65,2,65,6],[65,8,65,12],[66,2,66,6],[66,7,66,12],[69,1,91,1],[69,7,91,7],[132,5,132,6],[132,7,132,9],[109,1,109,6],[109,7,109,12],[110,1,110,6],[110,7,110,12],[111,7,111,12],[112,7,112,12],[131,5,131,6],[131,7,131,9],[129,1,129,4],[129,5,129,6],[129,7,129,9],[130,1,130,4],[130,5,130,6],[130,7,130,9],[131,1,131,4],[126,1,126,4],[126,5,126,6],[126,7,126,9],[128,1,128,4],[128,5,128,6],[128,7,128,9],[119,5,119,6],[133,1,133,9],[135,1,135,12],[136,1,138,12],[140,1,140,12],[24,1,24,2],[24,3,24,5],[24,6,24,8],[24,11,24,12],[25,1,25,2],[25,11,25,12],[25,3,25,5],[25,6,25,8],[27,1,27,2],[27,3,27,5],[27,6,27,8],[28,1,28,2],[28,3,28,5],[107,1,107,12],[111,1,111,6],[112,1,112,6],[95,1,96,4],[83,9,83,10],[84,9,84,10],[132,1,132,4],[106,1,106,6],[99,1,99,4],[106,7,106,12],[101,1,101,4],[108,1,108,6],[108,7,108,12],[127,1,127,4],[127,5,127,6],[127,7,127,9],[102,1,102,4],[115,1,115,12],[116,1,116,4],[116,5,116,6],[116,7,116,9],[117,5,117,6],[117,7,117,9],[117,1,117,4],[118,1,118,4],[118,5,118,6],[118,7,118,9],[100,1,100,4],[121,5,121,6],[121,7,121,9],[119,1,119,4],[72,9,72,10],[73,9,73,10],[74,9,74,10],[41,9,42,12],[67,1,67,12],[71,9,71,10],[73,3,73,4],[77,9,77,10],[64,2,64,6],[64,8,64,12],[119,7,119,9],[125,5,125,6],[125,7,125,9],[123,1,123,4],[123,5,123,6],[123,7,123,9],[124,1,124,4],[124,5,124,6],[124,7,124,9],[125,1,125,4],[122,5,122,6],[122,7,122,9],[120,1,120,4],[122,1,122,4],[120,5,120,6],[120,7,120,9],[121,1,121,4],[71,3,71,4],[72,3,72,4],[87,3,87,4],[88,3,88,4],[85,9,85,10],[30,1,30,2],[1,1,1,12],[4,1,4,12],[5,1,9,12],[10,1,10,12],[11,5,11,6],[11,8,11,9],[11,11,11,12],[11,2,11,3],[12,2,12,3],[12,5,12,6],[12,8,12,9],[12,10,12,12],[30,6,30,8],[30,11,30,12],[86,3,86,4],[39,1,40,4],[36,1,36,2],[36,3,36,5],[13,4,13,12],[14,1,14,12],[23,6,23,8],[51,1,51,12],[69,9,69,10],[70,9,70,10],[13,2,13,3],[23,11,23,12],[15,1,17,12],[18,1,18,12],[19,1,21,12],[22,1,22,12],[23,1,23,2],[23,3,23,5],[69,3,69,4],[70,3,70,4],[36,6,36,8],[36,11,36,12],[52,1,54,12],[55,1,55,12],[37,1,37,12],[38,1,38,4],[38,5,38,8],[38,9,38,12],[35,3,35,5],[35,6,35,8],[35,11,35,12],[32,1,32,2],[32,3,32,5],[32,6,32,8],[32,11,32,12],[33,1,33,2],[33,3,33,5],[33,6,33,8],[33,11,33,12],[34,1,34,2],[34,3,34,5],[34,6,34,8],[34,11,34,12],[26,1,26,2],[26,3,26,5],[26,6,26,8],[26,11,26,12],[43,5,44,8],[39,5,40,8],[39,9,40,12],[41,1,42,4],[41,5,42,8],[27,11,27,12],[28,6,28,8],[28,11,28,12],[29,1,29,2],[29,3,29,5],[29,6,29,8],[29,11,29,12],[31,1,31,2],[31,3,31,5],[31,6,31,8],[31,11,31,12],[43,9,44,12],[43,1,44,4],[30,3,30,5],[35,1,35,2]]}
[]
[null,"Sheet 2/2: Project details"]
[]
[null,"Project strategy"]
[null,"Background (within 250 words)"]
[]
[]
[null,null,null,null,null,null,null,1]
[]
[]
[null,"Type of ecosystems (select all applicable)"]
[null,false,"Forest",null,false,"Grassland",null,false,"Freshwater",null,false,"Coast"]
[null,false,"Dryland",null,false,"Mountain",null,false,"Urban/peri-urban"]
[null,false,"Other (please specify)"]
[null,"Overall aim and objectives (within 100 words)"]
[]
[]
[]
[null,"Expected outcome (within 200 words)"]
[]
[]
[]
[null,"Planned activities and outputs"]
[null,"Activity title",null,"Contents",null,null,"Output",null,null,"Indicator value (baseline)","Indicator value (project end)","Unit of indicator"]
[]
[]
[]
[]
[]
[]
[]
[]
[]
[]
[]
[]
[]
[null,"Project stakeholders"]
[null,"Organisation type (select)",null,null,null,"Organisation name",null,null,null,"Role in this project (within 100 words)"]
[null,"Select ▼"]
[]
[null,"Select ▼"]
[]
[null,"Select ▼"]
[]
[null,"Select ▼"]
[]
[null,"What innovation will the project create? (within 100 words)"]
[]
[]
[]
[null,"How can the long-term continuation of the project be secured? (within 100 words)"]
[]
[]
[]
[null,"Risks and assumptions (within 100 words)"]
[]
[]
[]
[]
[]
[]
[null,"Contribution to IPSI and global targets"]
[null," In what way does your project fall in line with the following SDM priorities (see the instruction on the right for more details)? (select all applicable)"]
[null,false,"1. Knowledge co-production, management and uptake",null,null,null,null,false,"2. Institutional frameworks and capacity development"]
[null,false,"3. Area-based conservation measures",null,null,null,null,false,"4. Ecosystem restoration"]
[null,false,"5. Sustainable value chain development"]
[null,"To which global sustainability goals and targets is your project likely to make tangible contributions, i.e. 2030 Kunminng-Montreal Global Biodiversity Framework (GBF) and 2030 Sustainable Development Goals (SDGs)? Please select if the contribution is direct or indirect."]
[null,"GBF","Target","Contents",null,"Direct","Indirect","SDGs","Goal","Contents",null,"Direct","Indirect"]
[null,"GBF","Target 1","Ensure that all areas are under participatory, integrated and biodiversity inclusive spatial planning and/or effective management processes addressing land- and sea‑use change, to bring the loss of areas of high biodiversity importance, including ecosystems of high ecological integrity, close to zero by 2030, while respecting the rights of indigenous peoples and local communities.",null,false,false,"SDGs","Goal 1","End poverty in all its forms everywhere",null,false,false]
[null,null,"Target 2","Ensure that by 2030 at least 30 per cent of areas of degraded terrestrial, inland water, and marine and coastal ecosystems are under effective restoration, in order to enhance biodiversity and ecosystem functions and services, ecological integrity and connectivity.",null,false,false,null,"Goal 2","End hunger, achieve food security and improved nutrition and promote sustainable agriculture",null,false,false]
[null,null,"Target 3","Ensure and enable that by 2030 at least 30 per cent of terrestrial and inland water areas, and of marine and coastal areas, especially areas of particular importance for biodiversity and ecosystem functions and services, are effectively conserved and managed through ecologically representative, well-connected and equitably governed systems of protected areas and other effective area-based conservation measures, recognizing indigenous and traditional territories, where applicable, and integrated into wider landscapes, seascapes and the ocean, while ensuring that any sustainable use, where appropriate in such areas, is fully consistent with conservation outcomes, recognizing and respecting the rights of indigenous peoples and local communities, including over their traditional territories.",null,false,false,null,"Goal 3","Ensure healthy lives and promote well-being for all at all ages",null,false,false]
[null,null,"Target 4","Ensure urgent management actions to halt human induced extinction of known threatened species and for the recovery and conservation of species, in particular threatened species, to significantly reduce extinction risk, as well as to maintain and restore the genetic diversity within and between populations of native, wild and domesticated species to maintain their adaptive potential, including through in situ and ex situ conservation and sustainable management practices, and effectively manage human-wildlife interactions to minimize human-wildlife conflict for coexistence.",null,false,false,null,"Goal 4","Ensure inclusive and equitable quality education and promote lifelong learning opportunities for all",null,false,false]
[null,null,"Target 5","Ensure that the use, harvesting and trade of wild species is sustainable, safe and legal, preventing overexploitation, minimizing impacts on non-target species and ecosystems, and reducing the risk of pathogen spillover, applying the ecosystem approach, while respecting and protecting customary sustainable use by indigenous peoples and local communities.",null,false,false,null,"Goal 5","Achieve gender equality and empower all women and girls",null,false,false]
[null,null,"Target 6","Eliminate, minimize, reduce and or mitigate the impacts of invasive alien species on biodiversity and ecosystem services by identifying and managing pathways of the introduction of alien species, preventing the introduction and establishment of priority invasive alien species, reducing the rates of introduction and establishment of other known or potential invasive alien species by at least 50 per cent by 2030, and eradicating or controlling invasive alien species, especially in priority sites, such as islands. ",null,false,false,null,"Goal 6","Ensure availability and sustainable management of water and sanitation for all",null,false,false]
[null,null,"Target 7","Reduce pollution risks and the negative impact of pollution from all sources by 2030, to levels that are not harmful to biodiversity and ecosystem functions and services, considering cumulative effects, including: (a) by reducing excess nutrients lost to the environment by at least half, including through more efficient nutrient cycling and use; (b) by reducing the overall risk from pesticides and highly hazardous chemicals by at least half, including through integrated pest management, based on science, taking into account food security and livelihoods; and (c) by preventing, reducing, and working towards eliminating plastic pollution.",null,false,false,null,"Goal 7","Ensure access to affordable, reliable, sustainable and modern energy for all",null,false,false]
[null,null,"Target 8","Minimize the impact of climate change and ocean acidification on biodiversity and increase its resilience through mitigation, adaptation, and disaster risk reduction actions, including through nature-based solution and/or ecosystem-based approaches, while minimizing negative and fostering positive impacts of climate action on biodiversity. ",null,false,false,null,"Goal 8","Promote sustained, inclusive and sustainable economic growth, full and productive employment and decent work for all",null,false,false]
[null,null,"Target 9","Ensure that the management and use of wild species are sustainable, thereby providing social, economic and environmental benefits for people, especially those in vulnerable situations and those most dependent on biodiversity, including through sustainable biodiversity-based activities, products and services that enhance biodiversity, and protecting and encouraging customary sustainable use by indigenous peoples and local communities.",null,false,false,null,"Goal 9","Build resilient infrastructure, promote inclusive and sustainable industrialization and foster innovation",null,false,false]
[null,null,"Target 10","Ensure that areas under agriculture, aquaculture, fisheries and forestry are managed sustainably, in particular through the sustainable use of biodiversity, including through a substantial increase of the application of biodiversity friendly practices, such as sustainable intensification, agroecological and other innovative approaches, contributing to the resilience and long-term efficiency and productivity of these production systems, and to food security, conserving and restoring biodiversity and maintaining nature’s contributions to people, including ecosystem functions and services.",null,false,false,null,"Goal 10","Reduce inequality within and among countries",null,false,false]
[null,null,"Target 11","Restore, maintain and enhance nature’s contributions to people, including ecosystem functions and services, such as the regulation of air, water and climate, soil health, pollination and reduction of disease risk, as well as protection from natural hazards and disasters, through nature-based solutions and/or ecosystem-based approaches for the benefit of all people and nature. ",null,false,false,null,"Goal 11","Make cities and human settlements inclusive, safe, resilient and sustainable",null,false,false]
[null,null,"Target 12","Significantly increase the area and quality, and connectivity of, access to, and benefits from green and blue spaces in urban and densely populated areas sustainably, by mainstreaming the conservation and sustainable use of biodiversity, and ensure biodiversity-inclusive urban planning, enhancing native biodiversity, ecological connectivity and integrity, and improving human health and well-being and connection to nature, and contributing to inclusive and sustainable urbanization and to the provision of ecosystem functions and services.",null,false,false,null,"Goal 12","Ensure sustainable consumption and production patterns",null,false,false]
[null,null,"Target 13","Take effective legal, policy, administrative and capacity-building measures at all levels, as appropriate, to ensure the fair and equitable sharing of benefits that arise from the utilization of genetic resources and from digital sequence information on genetic resources, as well as traditional knowledge associated with genetic resources, and facilitating appropriate access to genetic resources, and by 2030, facilitating a significant increase of the benefits shared, in accordance with applicable international access and benefit-sharing instruments.",null,false,false,null,"Goal 13","Take urgent action to combat climate change and its impacts",null,false,false]
[null,null,"Target 14","Ensure the full integration of biodiversity and its multiple values into policies, regulations, planningand development processes, poverty eradication strategies, strategic environmental assessments, environmental impact assessments and, as appropriate, national accounting, within and across all levelsof government and across all sectors, in particular those with significant impacts on biodiversity,       progressively aligning all relevant public and private activities, and fiscal and financial flows with the goals and targetsof this framework.",null,false,false,null,"Goal 14","Conserve and sustainably use the oceans, seas and marine resources for sustainable development",null,false,false]
[null,null,"Target 15","Take legal, administrative or policy measures to encourage and enable business, and in particular to ensure that large and transnational companies and financial institutions:\n(a) Regularly monitor, assess, and transparently disclose their risks, dependencies and impacts on biodiversity, including with requirements for all large as well as transnational companies and financial institutions along their operations, supply and value chains, and portfolios;\n(b) Provide information needed to consumers to promote sustainable consumption patterns;\n(c) Report on compliance with access and benefit-sharing regulations and measures, as applicable;\nin order to progressively reduce negative impacts on biodiversity, increase positive impacts, reduce biodiversity-related risks to business and financial institutions, and promote actions to ensure sustainable patterns of production.",null,false,false,null,"Goal 15","Protect, restore and promote sustainable use of terrestrial ecosystems, sustainably manage forests, combat desertification, and halt and reverse land degradation and halt biodiversity loss",null,false,false]
[null,null,"Target 16","Ensure that people are encouraged and enabled to make sustainable consumption choices, including by establishing supportive policy, legislative or regulatory frameworks, improving education and access to relevant and accurate information and alternatives, and by 2030, reduce the global footprint of consumption in an equitable manner, including through halving global food waste, significantly reducing overconsumption and substantially reducing waste generation, in order for all people to live well in harmony with Mother Earth.",null,false,false,null,"Goal 16","Promote peaceful and inclusive societies for sustainable development, provide access to justice for all and build effective, accountable and inclusive institutions at all levels",null,false,false]
[null,null,"Target 17","Establish, strengthen capacityfor, and implement in all countries, biosafety measures as set out in Article 8(g) of the Convention on Biological Diversity and measures for the handling of biotechnology and distribution of its benefits as set out in Article 19 of the Convention.",null,false,false,null,"Goal 17","Strengthen the means of implementation and revitalize the Global Partnership for Sustainable Development",null,false,false]
[null,null,"Target 18","Identify by 2025, and eliminate, phase out or reform incentives, including subsidies, harmful for biodiversity, in a proportionate, just, fair, effective and equitable way, while substantially and progressively reducing them by at least $500 billion per year by 2030, starting with the most harmful incentives, and scale up positive incentives for the conservation and sustainable use of biodiversity.",null,false,false]
[null,null,"Target 19","Substantially and progressively increase the level of financial resources from all sources, in an effective, timely and easily accessible manner, including domestic, international, public and private resources, in accordance with Article 20 of the Convention, to implement national biodiversity strategies and action plans, mobilizing at least $200 billion per year by 2030, including by: \n\n(a)        Increasing total biodiversity related international financial resources from developed countries, including official development assistance, and from countries that voluntarily assume obligations of developed country Parties, to developing countries, in particular the least developed countries and small island developing States, as well as countries with economies in transition, to at least $20 billion per year by 2025, and to at least $30 billion per year by 2030;\n\n(b)        Significantly increasing domestic resource mobilization, facilitated by the preparation and implementation of national biodiversity finance plans or similar instruments according to national needs, priorities and circumstances;\n\n(c)        Leveraging private finance, promoting blended finance, implementing strategies for raising new and additional resources, and encouraging the private sector to invest in biodiversity, including through impact funds and other instruments;\n\n(d)        Stimulating innovative schemes such as payment for ecosystem services, green bonds, biodiversity offsets and credits, and benefit-sharing mechanisms, with environmental and social safeguards;\n\n(e)        Optimizing co-benefits and synergies of finance targeting the biodiversity and climate crises;\n\n(f)        Enhancing the role of collective actions, including by indigenous peoples and local communities, Mother Earth centric actions[1] and non-market-based approaches including community based natural resource management and civil society cooperation and solidarity aimed at the conservation of biodiversity;\n\n(g)        Enhancing the effectiveness, efficiency and transparency of resource provision and use;",null,false,false]
[null,null,"Target 20","Strengthen capacity-building and development, access to and transfer of technology, and promote development of and access to innovation and technical and scientific cooperation, including through South‑South, North-South and triangular cooperation, to meet the needs for effective implementation, particularly in developing countries, fostering joint technology development and joint scientific research programmes for the conservation and sustainable use of biodiversity and strengthening scientific research and monitoring capacities, commensurate with the ambition of the goals and targets of the Framework.",null,false,false]
[null,null,"Target 21","Ensure that the best available data, information and knowledge are accessible to decision makers, practitioners and the public to guide effective and equitable governance, integrated and participatory management of biodiversity, and to strengthen communication, awareness-raising, education, monitoring, research and knowledge management and, also in this context, traditional knowledge, innovations, practices and technologies of indigenous peoples and local communities should only be accessed with their free, prior and informed consent,[2] in accordance with national legislation.",null,false,false]
[null,null,"Target 22","Ensure the full, equitable, inclusive, effective and gender-responsive representation and participation in decision-making, and access to justice and information related to biodiversity by indigenous peoples and local communities, respecting their cultures and their rights over lands, territories, resources, and traditional knowledge, as well as by women and girls, children and youth, and persons with disabilities and ensure the full protection of environmental human rights defenders.",null,false,false]
[null,null,"Target 23","Ensure gender equality in the implementation of the Framework through a gender-responsive approach, where all women and girls have equal opportunity and capacity to contribute to the three objectives of the Convention, including by recognizing their equal rights and access to land and natural resources and their full, equitable, meaningful and informed participation and leadership at all levels of action, engagement, policy and decision-making related to biodiversity.",null,false,false]
[]
[null,"Project timeline"]
[null,"(Please check in the boxes for each activity)"]
[null,"Activity title (select)",null,null,null,"1st year",null,null,null,"2nd year (in case that the project period is 2 years)"]
[null,null,null,null,null,"1st quarter","2nd quarter","3rd quarter","4th quarter","1st quarter","2nd quarter","3rd quarter","4th quarterー"]
[null,"Select ▼",null,null,null,false,false,false,false,false,false,false,false]
[null,"Select ▼",null,null,null,false,false,false,false,false,false,false,false]
[null,"Select ▼",null,null,null,false,false,false,false,false,false,false,false]
[null,"Select ▼",null,null,null,false,false,false,false,false,false,false,false]
[null,"Select ▼",null,null,null,false,false,false,false,false,false,false,false]
[null,"Select ▼",null,null,null,false,false,false,false,false,false,false,false]
[]
[null,"Budget estimate"]
[null,"Estimated total budget",null,null,null,null,null,"Requested amount of funds from the SDM Programme (approximate max. USD 20,000)"]
[null,{"$f":"$M$134","v":0},null,null,null,null,null,{"$f":"L134","v":0}]
[null,"Source and amount of co-financing/in-kind contributions"]
[null,"Name(s) of source(s)/organisation(s)",null,null,null,null,null,"Amount"]
[]
[]
[]
[null,"Total",null,null,null,null,null,{"$f":"SUM(H110:M112)","v":0}]
[]
[null,"BUDGET BREAKDOWN"]
[null,"Budget and source of finance (USD)"]
[null,"Activity title (select)",null,null,null,"Item type (select)",null,"Item",null,null,"Co-financing","SDM","Sub-total"]
[null,"Select ▼",null,null,null,"Select ▼",null,null,null,null,0,0,{"$f":"SUM(J118:L118)","v":0}]
[null,"Select ▼",null,null,null,"Select ▼",null,null,null,null,0,0,0]
[null,"Select ▼",null,null,null,"Select ▼",null,null,null,null,0,0,0]
[null,"Select ▼",null,null,null,"Select ▼",null,null,null,null,0,0,0]
[null,"Select ▼",null,null,null,"Select ▼",null,null,null,null,0,0,0]
[null,"Select ▼",null,null,null,"Select ▼",null,null,null,null,0,0,0]
[null,"Select ▼",null,null,null,"Select ▼",null,null,null,null,0,0,0]
[null,"Select ▼",null,null,null,"Select ▼",null,null,null,null,0,0,0]
[null,"Select ▼",null,null,null,"Select ▼",null,null,null,null,0,0,0]
[null,"Select ▼",null,null,null,"Select ▼",null,null,null,null,0,0,0]
[null,"Select ▼",null,null,null,"Select ▼",null,null,null,null,0,0,0]
[null,"Select ▼",null,null,null,"Select ▼",null,null,null,null,0,0,{"$f":"SUM(J129:L129)","v":0}]
[null,"Select ▼",null,null,null,"Select ▼",null,null,null,null,0,0,0]
[null,"Select ▼",null,null,null,"Select ▼",null,null,null,null,0,0,0]
[null,"Select ▼",null,null,null,"Select ▼",null,null,null,null,0,0,0]
[null,"Select ▼",null,null,null,"Select ▼",null,null,null,null,0,0,0]
[null,"Total",null,null,null,null,null,null,null,null,{"$f":"SUM(K118:L133)","v":0},{"$f":"SUM(L118:L133)","v":0},0]
[]
[null,"IMPORTANT NOTE: The expenses listed below are generally not eligible to be covered by the grant."]
[null,"a. Permanent/full-time staff, project directors/managers. Personnel expenses for directors and full-time staff, office rent including utilities and water charges\nb. Expenses necessary for the routine operation of the organisations\nc. Construction expenses\nd. Equipment expenses, such as cars and computers, of more than USD 200.\ne. Sub-contracting is basically not recommended, but if unavoidable can be approved upon consultation with the Secretariat and up to USD 200\n\n*In case of uncertainty, please contact the secretariat for guidance on project expenses."]
[]
[]
[]
[null,"Application sheet consits of 2 pages. Please fill in both completely."]

{"sheet":"select_items","index":4,"n_rows":209,"n_cols":9,"rows_kept":209,"cut":false,"hidden":true,"merged":[]}
[]
[null,"Country","Project type","Organisation type","Organisation type of stakeholder","Item type","Year","Month","Activity title"]
[null,"Select ▼","Select ▼","Select ▼","Select ▼","Select ▼",2022,1,"Select ▼"]
[null,"Afghanistan","Field implementation","Government","Government","Remuneration",2023,2,{"$f":"OFFSET(form2!$B$25,0,0)&\"\"","v":""}]
[null,"Albania","Partnership building","Academic/research institution","Local government","Travel",2024,3,{"$f":"OFFSET(form2!$B$25,1,0)&\"\"","v":""}]
[null,"Algeria","Research","NGO","Private company","Meeting",2025,4,{"$f":"OFFSET(form2!$B$25,2,0)&\"\"","v":""}]
[null,"Andorra","Education","Private company","NGO","Printing",2026,5,{"$f":"OFFSET(form2!$B$25,3,0)&\"\"","v":""}]
[null,"Angola",null,null,"Other","Communication and transportation",2027,6,{"$f":"OFFSET(form2!$B$25,4,0)&\"\"","v":""}]
[null,"Antigua and Barbuda",null,null,null,"Equipment",2028,7,{"$f":"OFFSET(form2!$B$25,5,0)&\"\"","v":""}]
[null,"Argentina",null,null,null,"Other",2029,8,{"$f":"OFFSET(form2!$B$25,6,0)&\"\"","v":""}]
[null,"Armenia",null,null,null,null,2030,9,{"$f":"OFFSET(form2!$B$25,7,0)&\"\"","v":""}]
[null,"Australia",null,null,null,null,2031,10,{"$f":"OFFSET(form2!$B$25,8,0)&\"\"","v":""}]
[null,"Austria",null,null,null,null,2032,11,{"$f":"OFFSET(form2!$B$25,9,0)&\"\"","v":""}]
[null,"Azerbaijan",null,null,null,null,2033,12,{"$f":"OFFSET(form2!$B$25,10,0)&\"\"","v":""}]
[null,"Bahamas",null,null,null,null,2034,null,{"$f":"OFFSET(form2!$B$25,11,0)&\"\"","v":""}]
[null,"Bahrain",null,null,null,null,2035]
[null,"Bangladesh",null,null,null,null,2036]
[null,"Barbados",null,null,null,null,2037]
[null,"Belarus",null,null,null,null,2038]
[null,"Belgium",null,null,null,null,2039]
[null,"Belize",null,null,null,null,2040]
[null,"Benin",null,null,null,null,2041]
[null,"Bhutan",null,null,null,null,2042]
[null,"Bolivia, Plurinational State of",null,null,null,null,2043]
[null,"Bosnia and Herzegovina",null,null,null,null,2044]
[null,"Botswana",null,null,null,null,2045]
[null,"Brazil",null,null,null,null,2046]
[null,"Brunei Darussalam",null,null,null,null,2047]
[null,"Bulgaria",null,null,null,null,2048]
[null,"Burkina Faso",null,null,null,null,2049]
[null,"Burundi",null,null,null,null,2050]
[null,"Cambodia"]
[null,"Cameroon"]
[null,"Canada"]
[null,"Cape Verde"]
[null,"Central African Republic"]
[null,"Chad"]
[null,"Chile"]
[null,"China"]
[null,"Colombia"]
[null,"Comoros"]
[null,"Congo"]
[null,"Congo, the Democratic Republic of the"]
[null,"Cook Islands"]
[null,"Costa Rica"]
[null,"Côte d'Ivoire"]
[null,"Croatia"]
[null,"Cuba"]
[null,"Cyprus"]
[null,"Czechia"]
[null,"Denmark"]
[null,"Djibouti"]
[null,"Dominica"]
[null,"Dominican Republic"]
[null,"Ecuador"]
[null,"Egypt"]
[null,"El Salvador"]
[null,"Equatorial Guinea"]
[null,"Eritrea"]
[null,"Estonia"]
[null,"Eswatini"]
[null,"（Swaziland）"]
[null,"Ethiopia"]
[null,"Fiji"]
[null,"Finland"]
[null,"France"]
[null,"Gabon"]
[null,"Gambia"]
[null,"Georgia"]
[null,"Germany"]
[null,"Ghana"]
[null,"Greece"]
[null,"Grenada"]
[null,"Guatemala"]
[null,"Guinea"]
[null,"Guinea-Bissau"]
[null,"Guyana"]
[null,"Haiti"]
[null,"Holy See (Vatican City State)"]
[null,"Honduras"]
[null,"Hungary"]
[null,"Iceland"]
[null,"India"]
[null,"Indonesia"]
[null,"Iran, Islamic Republic of"]
[null,"Iraq"]
[null,"Ireland"]
[null,"Israel"]
[null,"Italy"]
[null,"Jamaica"]
[null,"Japan"]
[null,"Jordan"]
[null,"Kazakhstan"]
[null,"Kenya"]
[null,"Kiribati"]
[null,"Korea, Democratic People's Republic of"]
[null,"Korea, Republic of"]
[null,"Kosovo"]
[null,"Kuwait"]
[null,"Kyrgyzstan"]
[null,"Lao People's Democratic Republic"]
[null,"Latvia"]
[null,"Lebanon"]
[null,"Lesotho"]
[null,"Liberia"]
[null,"Libya"]
[null,"Liechtenstein"]
[null,"Lithuania"]
[null,"Luxembourg"]
[null,"Macedonia, the former Yugoslav Republic"]
[null,"Madagascar"]
[null,"Malawi"]
[null,"Malaysia"]
[null,"Maldives"]
[null,"Mali"]
[null,"Malta"]
[null,"Marshall Islands"]
[null,"Mauritania"]
[null,"Mauritius"]
[null,"Mexico"]
[null,"Micronesia, Federated States of"]
[null,"Moldova, Republic of"]
[null,"Monaco"]
[null,"Mongolia"]
[null,"Montenegro"]
[null,"Morocco"]
[null,"Mozambique"]
[null,"Myanmar"]
[null,"Nagorno Karabagh Republic"]
[null,"Namibia"]
[null,"Nauru"]
[null,"Nepal"]
[null,"Netherlands"]
[null,"New Zealand"]
[null,"Nicaragua"]
[null,"Niger"]
[null,"Nigeria"]
[null,"Niue"]
[null,"Northern Cyprus"]
[null,"Norway"]
[null,"Oman"]
[null,"Pakistan"]
[null,"Palau"]
[null,"Palestinian Territory, Occupied"]
[null,"Panama"]
[null,"Papua New Guinea"]
[null,"Paraguay"]
[null,"Peru"]
[null,"Philippines"]
[null,"Poland"]
[null,"Portugal"]
[null,"Pridnestrovian Moldavian Republic"]
[null,"Qatar"]
[null,"Romania"]
[null,"Russian Federation"]
[null,"Rwanda"]
[null,"Saint Kitts and Nevis"]
[null,"Saint Lucia"]
[null,"Saint Vincent and the Grenadines"]
[null,"Samoa"]
[null,"San Marino"]
[null,"Sao Tome and Principe"]
[null,"Saudi Arabia"]
[null,"Senegal"]
[null,"Serbia"]
[null,"Seychelles"]
[null,"Sierra Leone"]
[null,"Singapore"]
[null,"Slovakia"]
[null,"Slovenia"]
[null,"Solomon Islands"]
[null,"Somalia"]
[null,"Somaliland, Republic of"]
[null,"South Africa"]
[null,"South Ossetia"]
[null,"South Sudan"]
[null,"Spain"]
[null,"Sri Lanka"]
[null,"Sudan"]
[null,"Suriname"]
[null,"Sweden"]
[null,"Switzerland"]
[null,"Syrian Arab Republic"]
[null,"Taiwan, Province of China"]
[null,"Tajikistan"]
[null,"Tanzania, United Republic of"]
[null,"Thailand"]
[null,"Timor-Leste"]
[null,"Togo"]
[null,"Tonga"]
[null,"Trinidad and Tobago"]
[null,"Tunisia"]
[null,"Turkey"]
[null,"Turkmenistan"]
[null,"Tuvalu"]
[null,"Uganda"]
[null,"Ukraine"]
[null,"United Arab Emirates"]
[null,"United Kingdom"]
[null,"United States"]
[null,"Uruguay"]
[null,"Uzbekistan"]
[null,"Vanuatu"]
[null,"Venezuela, Bolivarian Republic of"]
[null,"Viet Nam"]
[null,"Western Sahara"]
[null,"Yemen"]
[null,"Zambia"]
[null,"Zimbabwe"]